bitfinex/quotes_ETHUSD_20250608
["timestamp","ask_amount","ask_price","bid_price","bid_amount"]
[1749345601154,18.882,2514.5,2514.4,32.01779195]
[1749345601949,17.186,2514.5,2514.4,32.01779195]
[1749345602157,18.882,2514.5,2514.4,32.01779195]
[1749345602538,17.186,2514.5,2514.4,32.01779195]
[1749345602849,18.882,2514.5,2514.4,32.01779195]
[1749345609052,17.186,2514.5,2514.4,32.01779195]
[1749345609449,18.882,2514.5,2514.4,32.56779195]
[1749345610238,17.186,2514.5,2514.4,32.56779195]
[1749345610438,18.882,2514.5,2514.4,32.56779195]
[1749345612177,17.186,2514.5,2514.4,32.56779195]
[1749345612347,18.882,2514.5,2514.4,32.56779195]
[1749345612548,17.186,2514.5,2514.4,32.56779195]
[1749345612746,18.866,2514.5,2514.4,32.56779195]
[1749345614382,18.866,2514.5,2514.4,31.76409195]
[1749345617396,18.866,2514.5,2514.4,34.47385041]
[1749345618297,15.07127211,2514.5,2514.4,35.24615041]
[1749345618500,16.75127211,2514.5,2514.4,35.24615041]
[1749345620555,16.75127211,2514.5,2514.4,28.72915041]
[1749345620780,16.75127211,2514.5,2514.4,35.21815041]
[1749345621007,16.75127211,2514.5,2514.4,31.73709195]
[1749345626483,16.75127211,2514.5,2514.4,34.44685041]
[1749345628380,1.68,2514.5,2514.4,34.44685041]
[1749345629205,17.186,2514.7,2514.6,4.52677563]
[1749345629406,18.865,2514.7,2514.6,30.49483409]
[1749345631484,17.186,2514.7,2514.6,30.49483409]
[1749345631690,18.865,2514.7,2514.6,30.49483409]
[1749345633991,18.865,2514.7,2514.6,35.21483409]
[1749345638888,18.865,2514.7,2514.6,24.69677563]
[1749345639095,18.865,2514.7,2514.6,31.17777563]
[1749345640017,19.619,2514.7,2514.6,8.69677563]
[1749345640220,19.619,2514.7,2514.6,31.17777563]
[1749345645832,19.619,2514.7,2514.6,26.45777563]
[1749345652047,17.186,2514.7,2514.6,29.16753409]
[1749345652553,18.863,2514.7,2514.6,29.71753409]
[1749345653814,16.87413763,2514.7,2514.6,33.18329255]
[1749345654010,16.87413763,2514.7,2514.6,30.47353409]
[1749345657143,16.30583763,2514.7,2514.6,30.47353409]
[1749345657524,16.30583763,2514.7,2514.6,35.19353409]
[1749345664837,14.3174261,2514.7,2514.6,35.19353409]
[1749345666979,12.32901457,2514.7,2514.6,35.19353409]
[1749345669397,10.65201457,2514.7,2514.6,35.19353409]
[1749345669599,10.91991457,2514.7,2514.6,35.19353409]
[1749345669799,8.93154257,2514.7,2514.6,35.19353409]
[1749345670159,0.66666667,2515.8,2515.3,3.9756689]
[1749345670160,17.184,2515.7,2515.3,3.9756689]
[1749345670475,2.5018,2515.6,2515.5,3.97535281]
[1749345670675,2.5018,2515.6,2515.5,4.38217372]
[1749345675316,17.184,2515.7,2515.6,3.97519478]
[1749345675466,18.86,2515.7,2515.6,10.45419478]
[1749345678365,18.86,2515.7,2515.6,15.17419478]
[1749345681313,18.86,2515.7,2515.6,31.17419478]
[1749345682279,18.28030696,2515.7,2515.6,32.52839478]
[1749345682596,14.61449998,2515.7,2515.6,35.23815324]
[1749345682796,0.66666667,2516.5,2515.6,35.23815324]
[1749345682797,0.66666667,2516.5,2516.4,20.52393101]
[1749345682999,0.66666667,2516.5,2516.4,35.23688947]
[1749345683000,0.554246,2516.5,2516.4,35.23688947]
[1749345683200,16.87014857,2516.7,2516.6,4.52361519]
[1749345683403,18.44674816,2516.7,2516.6,29.71237365]
[1749345687203,18.44674816,2516.7,2516.6,34.43237365]
[1749345689619,18.01030136,2516.7,2516.6,34.43237365]
[1749345690493,18.00930136,2516.7,2516.6,34.43237365]
[1749345690907,1.675,2516.7,2516.6,34.43237365]
[1749345691330,1.47622722,2516.7,2516.6,35.18977365]
[1749345691637,0.7875,2517.5,2517.4,19.97235242]
[1749345691832,2.4625,2517.5,2517.4,26.44835242]
[1749345692137,2.4625,2517.5,2517.4,29.15811088]
[1749345692510,2.4625,2517.5,2517.4,26.44835242]
[1749345694436,2.4625,2517.5,2517.4,26.99835242]
[1749345694609,1.675,2517.5,2517.4,26.99835242]
[1749345696041,1.675,2517.5,2517.4,31.71835242]
[1749345696740,2.4625,2517.5,2517.4,31.56457392]
[1749345696931,4.42625,2517.5,2517.4,31.56457392]
[1749345697330,2.4625,2517.5,2517.4,31.56457392]
[1749345697530,0.7875,2517.5,2517.4,31.56457392]
[1749345697748,2.4625,2517.5,2517.4,31.56457392]
[1749345698523,17.175,2517.7,2517.6,19.97203686]
[1749345698723,18.85,2517.7,2517.6,19.97203686]
[1749345699046,21.60125,2517.7,2517.6,22.484]
[1749345699209,21.60125,2517.7,2517.6,22.485]
[1749345699815,21.60125,2517.7,2517.6,26.45703686]
[1749345700948,19.6375,2517.7,2517.6,26.45703686]
[1749345711578,19.6375,2517.7,2517.6,26.44703686]
[1749345714659,19.6375,2517.7,2517.6,26.44603686]
[1749345720464,19.6415,2517.7,2517.6,26.44603686]
[1749345722881,18.854,2517.7,2517.6,26.44603686]
[1749345725566,18.854,2517.7,2517.6,31.16603686]
[1749345727066,18.854,2517.7,2517.6,24.69203686]
[1749345727306,18.854,2517.7,2517.6,31.16603686]
[1749345728612,19.6283,2517.7,2517.6,24.69203686]
[1749345728817,19.6283,2517.7,2517.6,31.16503686]
[1749345731711,19.6283,2517.7,2517.6,26.44503686]
[1749345735085,21.59113,2517.7,2517.6,16.0]
[1749345735305,21.59113,2517.7,2516.8,0.7628]
[1749345735306,0.7743,2517.6,2516.8,5.4828]
[1749345735519,0.7743,2517.6,2517.0,3.97298371]
[1749345735684,0.7743,2517.6,2517.5,3.97219463]
[1749345736019,3.20438885,2517.6,2517.5,10.44519463]
[1749345739215,2.4483,2517.6,2517.5,10.44519463]
[1749345750513,2.4483,2517.6,2517.5,6.473]
[1749345751010,2.4483,2517.6,2517.0,0.40278698]
[1749345751196,0.8192,2517.4,2517.1,3.97266853]
[1749345751400,1.33949585,2517.4,2517.3,3.97251022]
[1749345751597,0.8192,2517.6,2517.4,3.97226985]
[1749345751803,1.674,2517.5,2517.4,3.97226985]
[1749345753000,1.674,2517.5,2517.3,3.97243578]
[1749345753915,1.674,2517.5,2517.4,3.97235242]
[1749345754618,1.674,2517.5,2517.3,3.9724743]
[1749345754782,3.91179585,2517.5,2517.3,3.9724743]
[1749345756616,3.91179585,2517.5,2517.4,3.97235242]
[1749345756815,3.91179585,2517.5,2517.3,3.97243138]
[1749345757020,1.674,2517.5,2517.3,3.97243138]
[1749345757692,0.8192,2517.4,2517.1,6.474]
[1749345757901,2.70975846,2517.3,2517.1,6.474]
[1749345758810,0.8192,2517.4,2517.1,10.4467732]
[1749345759131,0.8192,2517.4,2517.1,10.44671508]
[1749345761588,0.8192,2517.4,2517.2,3.97263422]
[1749345762225,1.73669995,2517.4,2517.2,3.97263422]
[1749345767128,1.674,2517.5,2517.4,3.97235242]
[1749345769998,1.674,2517.5,2517.3,3.97243133]
[1749345770193,0.8192,2517.4,2517.1,3.97280584]
[1749345770435,4.44646449,2517.4,2517.2,6.474]
[1749345771931,1.73670603,2517.4,2517.2,10.44654189]
[1749345772140,0.8192,2517.4,2517.3,3.97251022]
[1749345772441,2.34066667,2517.5,2517.3,3.97251022]
[1749345773300,2.34066667,2517.5,2517.3,3.97250162]
[1749345773500,0.66666667,2517.5,2517.4,3.97235242]
[1749345773803,2.34066667,2517.5,2517.4,3.97235242]
[1749345775524,2.34066667,2517.5,2517.3,3.97244238]
[1749345784271,2.34066667,2517.5,2517.3,3.97249942]
[1749345784768,17.172,2517.4,2517.3,3.97249942]
[1749345785176,17.172,2517.4,2517.2,10.44662224]
[1749345785563,17.172,2517.4,2517.3,3.97251022]
[1749345786484,18.846,2517.4,2517.3,3.97251022]
[1749345798301,17.172,2517.4,2517.3,20.76781022]
[1749345798603,18.845,2517.4,2517.3,20.76781022]
[1749345805939,18.845,2517.4,2517.3,27.23781022]
[1749345812924,1.673,2517.4,2517.3,27.23781022]
[1749345817465,1.673,2517.4,2517.3,26.44251022]
[1749345824658,1.673,2517.4,2517.3,19.97251022]
[1749345824862,1.673,2517.4,2517.3,26.44151022]
[1749345825283,1.673,2517.4,2517.3,19.97251022]
[1749345825495,1.673,2517.4,2517.3,26.44151022]
[1749345827170,1.673,2517.4,2517.3,19.97251022]
[1749345827354,1.673,2517.4,2517.3,26.44051022]
[1749345828198,1.673,2517.4,2517.3,3.97251022]
[1749345828199,2.4537,2517.4,2517.3,3.97251022]
[1749345828398,2.68766667,2517.4,2517.3,10.44051022]
[1749345828557,2.68766667,2517.4,2517.3,3.97251022]
[1749345828758,2.68766667,2517.4,2517.3,10.44051022]
[1749345833313,2.4537,2517.4,2517.3,10.44051022]
[1749345837063,19.6237,2517.4,2517.3,10.44051022]
[1749345845584,19.5737,2517.4,2517.3,10.44051022]
[1749345849939,18.793,2517.4,2517.3,10.44051022]
[1749345851511,17.17,2517.4,2517.3,10.44051022]
[1749345851709,18.841,2517.4,2517.3,10.44051022]
[1749345857557,18.841,2517.4,2517.3,10.43951022]
[1749345857770,18.841,2517.4,2517.3,3.97251022]
[1749345857975,0.7516,2517.3,2516.9,16.0]
[1749345858155,0.7516,2517.3,2517.0,6.467]
[1749345858463,0.7516,2517.2,2517.1,6.467]
[1749345858674,3.57500289,2517.2,2517.1,6.467]
[1749345859568,0.7516,2516.8,2516.5,10.44076323]
[1749345859755,1.67,2516.7,2516.3,3.97403961]
[1749345859957,1.67,2516.7,2516.5,3.9737333]
[1749345860149,1.91216,2516.7,2516.3,3.97397769]
[1749345860333,0.7516,2516.6,2516.5,3.97377309]
[1749345866336,1.67,2516.6,2516.5,3.97362444]
[1749345871544,18.845,2516.6,2516.5,3.97362444]
[1749345872875,18.845,2516.6,2516.4,3.97379043]
[1749345873073,18.845,2516.6,2516.4,26.44079043]
[1749345873074,2.6829,2516.5,2516.4,26.44079043]
[1749345873246,0.7984,2516.5,2516.4,22.467]
[1749345873642,0.7984,2516.5,2516.4,26.44093101]
[1749345874354,0.7984,2516.5,2516.4,22.467]
[1749345879588,0.7984,2516.5,2516.1,0.39753528]
[1749345879762,3.50815846,2516.5,2515.7,0.799]
[1749345879969,18.845,2516.6,2516.4,3.97381433]
[1749345880178,17.175,2516.6,2516.5,3.97377309]
[1749345880383,18.846,2516.6,2516.5,3.97377309]
[1749345882186,18.846,2516.6,2516.5,6.467]
[1749345883956,18.846,2516.6,2516.5,10.44077309]
[1749345890970,18.846,2516.6,2516.5,6.467]
[1749345891170,18.846,2516.6,2516.5,10.44077309]
[1749345891795,18.846,2516.6,2516.5,6.467]
[1749345892391,18.846,2516.6,2516.5,10.44077309]
[1749345894494,18.846,2516.6,2516.5,6.467]
[1749345894684,18.846,2516.6,2516.5,10.44077309]
[1749345900302,18.846,2516.6,2516.5,6.467]
[1749345900922,18.846,2516.6,2516.5,10.44077309]
[1749345902125,18.846,2516.6,2516.5,6.467]
[1749345902618,18.846,2516.6,2516.5,10.44077309]
[1749345905231,1.671,2516.6,2516.5,10.44077309]
[1749345907634,1.671,2516.6,2516.4,19.97386179]
[1749345907836,1.671,2516.6,2516.3,4.77299553]
[1749345907837,1.671,2516.6,2516.5,10.43877309]
[1749345908332,1.671,2516.6,2516.5,6.465]
[1749345908529,1.671,2516.6,2516.5,10.43877309]
[1749345920547,1.671,2516.6,2516.4,3.97384459]
[1749345920728,1.671,2516.6,2516.5,6.464]
[1749345921428,1.671,2516.6,2516.5,10.43777309]
[1749345925445,3.63724,2516.6,2516.5,10.43777309]
[1749345925873,3.63724,2516.6,2516.5,3.97377309]
[1749345926040,3.63724,2516.6,2516.5,10.43777309]
[1749345926240,0.831,2516.5,2515.7,4.72]
[1749345926475,0.831,2516.3,2515.8,6.464]
[1749345926779,0.831,2516.3,2515.9,3.97463797]
[1749345926989,0.831,2516.3,2515.9,16.0]
[1749345927205,3.54075846,2516.3,2515.8,10.43881546]
[1749345927360,3.54075846,2516.3,2515.9,3.97469632]
[1749345927554,0.7961585,2516.2,2516.0,16.0]
[1749345928855,0.831,2516.3,2516.0,16.0]
[1749345929085,0.831,2516.3,2516.0,19.97448543]
[1749345929795,0.831,2516.3,2516.1,3.97436467]
[1749345930866,0.831,2516.3,2516.0,19.97453153]
[1749345931067,1.668,2516.2,2516.1,3.97432682]
[1749345931377,0.446824,2516.4,2516.3,3.97408894]
[1749345931575,2.114824,2516.4,2516.3,3.97408894]
[1749345931960,17.9296,2516.7,2516.3,3.97408894]
[1749345932179,17.9296,2516.7,2516.6,3.97361519]
[1749345932180,17.176,2516.7,2516.6,3.97361519]
[1749345932419,18.844,2516.7,2516.6,3.97361519]
[1749345933401,17.176,2516.7,2516.6,3.97361519]
[1749345933604,18.844,2516.7,2516.6,10.43761519]
[1749345934167,17.176,2516.7,2516.6,26.43761519]
[1749345934415,18.844,2516.7,2516.6,26.43761519]
[1749345935818,18.844,2516.7,2516.6,29.91687365]
[1749345936782,18.844,2516.7,2516.6,35.18687365]
[1749345939122,17.176,2516.7,2516.6,35.18687365]
[1749345942321,17.176,2516.7,2516.6,25.46311519]
[1749345942519,17.176,2516.7,2516.6,31.92511519]
[1749345942724,17.176,2516.7,2516.6,15.15561519]
[1749345943413,19.12706667,2516.7,2516.6,24.69361519]
[1749345943643,17.176,2516.7,2516.6,31.15561519]
[1749345945545,17.176,2516.7,2516.6,31.15461519]
[1749345946833,17.176,2516.7,2516.6,26.43461519]
[1749345951187,18.842,2516.7,2516.6,26.43461519]
[1749345953914,18.842,2516.7,2516.6,27.20411519]
[1749345958703,18.842,2516.7,2516.6,19.97361519]
[1749345958906,20.86822667,2516.7,2516.6,26.43461519]
[1749345961176,18.842,2516.7,2516.6,26.43461519]
[1749345966111,1.666,2516.7,2516.6,26.43461519]
[1749345978038,17.84066667,2516.9,2516.8,3.97329942]
[1749345978208,19.50666667,2516.9,2516.8,10.43329942]
[1749345980439,19.50666667,2516.9,2516.8,26.43329942]
[1749345983341,2.33266667,2516.9,2516.8,26.43329942]
[1749346004091,1.666,2516.9,2516.8,26.43329942]
[1749346009590,17.173,2517.0,2516.9,19.97314156]
[1749346009793,18.838,2517.0,2516.9,19.97314156]
[1749346014614,17.173,2517.0,2516.9,19.97314156]
[1749346014817,18.837,2517.0,2516.9,19.97314156]
[1749346017405,1.664,2517.0,2516.9,19.97314156]
[1749346019008,17.83966667,2517.1,2517.0,3.97298371]
[1749346019202,19.50366667,2517.1,2517.0,10.42998371]
[1749346026119,19.50366667,2517.1,2517.0,29.13974217]
[1749346028186,19.50366667,2517.1,2517.0,29.54540216]
[1749346031696,19.50366667,2517.1,2517.0,30.34080216]
[1749346039800,17.83966667,2517.1,2517.0,30.34080216]
[1749346040001,19.50366667,2517.1,2517.0,30.34080216]
[1749346046333,2.33066667,2517.1,2517.0,30.34080216]
[1749346046946,2.33066667,2517.1,2517.0,29.54140216]
[1749346047346,2.99733334,2517.1,2517.0,29.54140216]
[1749346053282,2.99733334,2517.1,2517.0,29.45837783]
[1749346054267,2.33066667,2517.1,2517.0,29.45837783]
[1749346055542,2.33066667,2517.1,2517.0,23.00537783]
[1749346055868,2.33066667,2517.1,2517.0,29.45737783]
[1749346057228,2.33066667,2517.1,2517.0,23.00537783]
[1749346057428,3.08776667,2517.1,2517.0,16.0]
[1749346057762,3.39654334,2517.1,2517.0,26.42498371]
[1749346058154,3.08776667,2517.1,2517.0,26.42498371]
[1749346063580,3.08776667,2517.1,2517.0,19.97298371]
[1749346063891,3.08776667,2517.1,2517.0,16.0]
[1749346064095,3.08776667,2517.1,2517.0,26.42498371]
[1749346064897,0.7571,2517.0,2516.5,3.9737425]
[1749346065099,4.73071519,2516.6,2516.5,0.39207735]
[1749346065300,4.73071519,2516.6,2516.4,6.452]
[1749346065301,0.7571,2516.6,2516.4,6.452]
[1749346065516,2.4201,2516.5,2516.4,22.452]
[1749346066114,2.4201,2516.5,2516.4,26.42593101]
[1749346075596,19.5951,2516.5,2516.4,26.42593101]
[1749346079760,17.175,2516.5,2516.4,26.42593101]
[1749346079935,18.836,2516.5,2516.4,26.42593101]
[1749346085701,18.836,2516.5,2516.4,27.19203101]
[1749346088521,18.836,2516.5,2516.4,26.42593101]
[1749346089116,18.836,2516.5,2516.4,26.42493101]
[1749346089490,18.836,2516.5,2516.4,16.0]
[1749346089702,21.5272,2516.5,2516.4,22.451]
[1749346090218,21.5272,2516.5,2516.1,4.72]
[1749346090402,25.50102984,2516.5,2516.2,6.451]
[1749346090607,2.55010298,2516.4,2516.2,6.451]
[1749346091879,2.55010298,2516.4,2516.3,3.97408894]
[1749346092843,2.55010298,2516.4,2516.2,10.42516646]
[1749346093135,2.55010298,2516.4,2516.3,3.97408894]
[1749346093719,2.55010298,2516.4,2516.3,10.42508894]
[1749346097424,19.6436,2516.5,2516.4,3.97393101]
[1749346098951,18.836,2516.5,2516.4,3.97393101]
[1749346101077,18.836,2516.5,2516.4,10.42493101]
[1749346113088,19.6238,2516.5,2516.4,6.45]
[1749346115518,19.6238,2516.5,2516.4,10.42393101]
[1749346115725,21.58618,2516.5,2516.4,6.45]
[1749346116315,21.58618,2516.5,2516.4,10.42393101]
[1749346117323,21.58618,2516.5,2516.4,6.45]
[1749346117698,21.58618,2516.5,2516.4,10.42393101]
[1749346118421,21.58618,2516.5,2516.4,6.45]
[1749346118631,21.58618,2516.5,2515.8,16.0]
[1749346118840,2.158618,2516.4,2516.2,3.97422351]
[1749346119141,2.158618,2516.4,2516.2,10.42422351]
[1749346119312,0.7878,2516.3,2516.2,22.45]
[1749346119508,0.7878,2516.3,2515.8,16.0]
[1749346119820,2.9660418,2516.3,2516.0,19.97448568]
[1749346120019,2.9660418,2516.3,2516.1,10.42433019]
[1749346120620,2.9660418,2516.3,2516.1,6.45]
[1749346121206,2.9660418,2516.3,2516.1,10.42340276]
[1749346122021,2.9660418,2516.3,2516.1,3.97440276]
[1749346122247,2.9660418,2516.3,2516.1,10.42340276]
[1749346122845,2.9660418,2516.3,2516.2,3.97424688]
[1749346123026,2.9660418,2516.3,2516.1,10.42332738]
[1749346124313,0.29660418,2516.2,2516.1,6.449]
[1749346125111,0.29660418,2516.2,2516.1,10.42340483]
[1749346125315,0.29660418,2516.2,2516.1,6.449]
[1749346126444,0.29660418,2516.2,2516.0,19.97452604]
[1749346126749,0.29660418,2516.2,2516.0,22.449]
[1749346127319,0.7878,2516.1,2515.5,0.75]
[1749346127532,5.0884848,2516.1,2515.3,0.75]
[1749346127734,3.97464136,2516.0,2515.5,3.97527923]
[1749346127938,0.7878,2515.8,2515.6,6.449]
[1749346130127,0.7878,2515.8,2515.6,10.4241474]
[1749346132126,0.7878,2515.8,2515.7,3.97503676]
[1749346132534,0.7878,2515.8,2515.6,10.4241474]
[1749346132535,1.1443646,2516.1,2515.8,3.97487876]
[1749346132737,2.1782418,2516.3,2515.9,3.61217618]
[1749346132942,1.66,2516.0,2515.9,14.03589695]
[1749346133441,1.66,2516.0,2515.9,10.42372077]
[1749346136923,1.66,2516.0,2515.6,0.7709]
[1749346137155,1.66,2516.0,2515.8,3.97487863]
[1749346137393,0.24781,2515.9,2515.7,19.97496781]
[1749346137627,0.24781,2515.9,2515.5,0.00344013]
[1749346137829,3.97519478,2515.6,2515.5,0.00344013]
[1749346138058,4.79298013,2515.8,2515.5,0.00344013]
[1749346139327,0.8181,2515.8,2515.5,0.00344013]
[1749346139533,0.50406497,2515.7,2515.5,0.00344013]
[1749346140241,4.79298774,2515.8,2515.5,0.00344013]
[1749346140833,0.8181,2515.8,2515.5,0.00344013]
[1749346141475,4.79305186,2515.8,2515.5,0.00344013]
[1749346141676,0.8181,2515.8,2515.5,0.00344013]
[1749346143575,0.8181,2515.8,2515.5,0.00344023]
[1749346143876,0.50407068,2515.7,2515.5,0.00344023]
[1749346145145,0.50407068,2515.7,2515.5,3.97877129]
[1749346145345,0.8181,2515.8,2515.5,3.9787713]
[1749346145654,8.109,2516.0,2515.8,3.97487876]
[1749346145655,1.66,2516.0,2515.8,3.97487876]
[1749346145832,1.66,2516.0,2515.8,3.97831901]
[1749346146032,1.66,2516.0,2515.8,0.00344025]
[1749346146240,1.659,2515.9,2515.8,0.00344025]
[1749346146532,1.90671,2515.9,2515.8,0.00344025]
[1749346150437,19.08971,2515.9,2515.8,0.00344025]
[1749346160207,18.842,2515.9,2515.8,0.00344025]
[1749346165516,22.81672077,2515.9,2515.8,0.00344025]
[1749346165810,23.56842077,2515.9,2515.8,0.00344025]
[1749346168910,19.5937,2515.9,2515.8,0.00344025]
[1749346172409,23.56842077,2515.9,2515.8,0.00344025]
[1749346172807,26.32272979,2515.9,2515.8,0.00344025]
[1749346175149,23.29692928,2515.9,2515.8,0.00344025]
[1749346175312,22.34800902,2515.9,2515.8,0.00344025]
[1749346175509,23.29691089,2515.9,2515.8,0.00344025]
[1749346176119,22.34800902,2515.9,2515.8,0.00344025]
[1749346176520,23.29689651,2515.9,2515.8,0.00344025]
[1749346179650,22.34800902,2515.9,2515.8,0.00344025]
[1749346179856,23.29686017,2515.9,2515.8,0.00344025]
[1749346180354,22.34800902,2515.9,2515.8,0.00344025]
[1749346180557,23.29684411,2515.9,2515.8,0.00344025]
[1749346181123,22.34800902,2515.9,2515.8,0.00344025]
[1749346181319,23.29682446,2515.9,2515.8,0.00344025]
[1749346181954,22.34800902,2515.9,2515.8,0.00344025]
[1749346182150,23.29683447,2515.9,2515.8,0.00344025]
[1749346182924,22.34800902,2515.9,2515.8,0.00344025]
[1749346183121,23.29683953,2515.9,2515.8,0.00344025]
[1749346183658,22.34800902,2515.9,2515.8,0.00344025]
[1749346184023,23.29683677,2515.9,2515.8,0.00344025]
[1749346185157,27.27155754,2515.9,2515.8,0.00344025]
[1749346185355,23.29683677,2515.9,2515.8,0.00344025]
[1749346193369,27.27155754,2515.9,2515.8,0.00344025]
[1749346193872,26.51985754,2515.9,2515.8,0.00344025]
[1749346194378,26.51985754,2515.9,2515.8,1.27704025]
[1749346196378,22.54513677,2515.9,2515.8,1.27704025]
[1749346196579,22.54513677,2515.9,2515.8,1.27704026]
[1749346197978,21.59630902,2515.9,2515.8,1.27704026]
[1749346198185,22.54539734,2515.9,2515.8,1.27704026]
[1749346200386,22.54539734,2515.9,2515.8,1.27704027]
[1749346201181,29.15049128,2515.9,2515.8,1.27704027]
[1749346201385,29.93469128,2515.9,2515.8,1.27704027]
[1749346201678,29.93469128,2515.9,2515.8,1.27704028]
[1749346201679,30.30542077,2515.9,2515.8,1.27704028]
[1749346201880,29.93469128,2515.9,2515.8,1.27704028]
[1749346202177,36.37969128,2515.9,2515.8,1.27704028]
[1749346202593,36.37969128,2515.9,2515.8,1.27704029]
[1749346203047,36.97256468,2515.9,2515.8,1.27704029]
[1749346203245,34.34219151,2515.9,2515.8,1.27704029]
[1749346203765,33.97164058,2515.9,2515.8,1.27704029]
[1749346203963,34.11984965,2515.9,2515.8,1.27704029]
[1749346204166,34.11985382,2515.9,2515.8,1.27704029]
[1749346204367,33.74931811,2515.9,2515.8,1.27704029]
[1749346204598,34.34216211,2515.9,2515.8,1.27704029]
[1749346204953,34.34216211,2515.9,2515.8,1.2770403]
[1749346205492,33.74931811,2515.9,2515.8,1.2770403]
[1749346205794,23.55191567,2515.9,2515.8,1.2770403]
[1749346205963,20.57528832,2515.9,2515.8,1.27704031]
[1749346206591,24.55000909,2515.9,2515.8,1.27704031]
[1749346206796,24.55000909,2515.9,2515.8,1.27704032]
[1749346206978,25.14282235,2515.9,2515.8,1.27704032]
[1749346207298,24.92052322,2515.9,2515.8,1.27704032]
[1749346207457,28.56444646,2515.9,2515.8,1.27704033]
[1749346208091,29.15725511,2515.9,2515.8,1.27704033]
[1749346208267,29.15726146,2515.9,2515.8,1.27704033]
[1749346208466,28.56444646,2515.9,2515.8,1.27704033]
[1749346208889,29.15726464,2515.9,2515.8,1.27704033]
[1749346209091,28.56444646,2515.9,2515.8,1.27704033]
[1749346210087,28.9349679,2515.9,2515.8,1.27704033]
[1749346210273,28.56444646,2515.9,2515.8,1.27704033]
[1749346210474,29.15727861,2515.9,2515.8,1.27704034]
[1749346210697,29.15731462,2515.9,2515.8,1.27704034]
[1749346210899,28.56444646,2515.9,2515.8,1.27704034]
[1749346212201,29.15738001,2515.9,2515.8,1.27704034]
[1749346212702,28.56444646,2515.9,2515.8,1.27704034]
[1749346212905,28.56444646,2515.9,2515.8,1.27704035]
[1749346213505,28.78677205,2515.9,2515.8,1.27704035]
[1749346213710,29.1573142,2515.9,2515.8,1.27704035]
[1749346213917,29.15731385,2515.9,2515.8,1.27704035]
[1749346214066,33.15731385,2515.9,2515.8,1.27704035]
[1749346214395,33.15731859,2515.9,2515.8,1.27704035]
[1749346214568,28.58972569,2515.9,2515.8,1.27704035]
[1749346217198,27.80552569,2515.9,2515.8,1.27704035]
[1749346217384,27.80552569,2515.9,2515.8,1.27704036]
[1749346217603,31.78024646,2515.9,2515.8,1.27704036]
[1749346217804,32.56444646,2515.9,2515.8,1.27704036]
[1749346217986,32.93484108,2515.9,2515.8,1.27704036]
[1749346218193,32.56444646,2515.9,2515.8,1.27704036]
[1749346218678,32.56444646,2515.9,2515.8,1.27704037]
[1749346218878,32.93487,2515.9,2515.8,1.27704037]
[1749346219078,28.56444646,2515.9,2515.8,1.27704037]
[1749346219491,29.11444646,2515.9,2515.8,1.27704037]
[1749346219876,29.48487728,2515.9,2515.8,1.27704037]
[1749346220075,29.11444646,2515.9,2515.8,1.27704038]
[1749346220484,33.11444646,2515.9,2515.8,1.27704038]
[1749346220891,33.48502231,2515.9,2515.8,1.27704038]
[1749346221093,33.33679057,2515.9,2515.8,1.27704038]
[1749346221407,27.80552569,2515.9,2515.8,1.27704038]
[1749346221610,30.45743886,2515.9,2515.8,1.27704038]
[1749346221810,30.23508832,2515.9,2515.8,1.27704039]
[1749346222108,26.45743922,2515.9,2515.8,1.27704039]
[1749346222406,26.23508832,2515.9,2515.8,1.27704039]
[1749346222912,26.60567556,2515.9,2515.8,1.27704039]
[1749346223112,26.23508832,2515.9,2515.8,1.2770404]
[1749346223406,30.58039873,2515.9,2515.8,1.2770404]
[1749346223574,30.20980909,2515.9,2515.8,1.2770404]
[1749346224008,30.58039988,2515.9,2515.8,1.2770404]
[1749346224184,30.58039947,2515.9,2515.8,1.2770404]
[1749346224388,30.20980909,2515.9,2515.8,1.2770404]
[1749346224688,30.43216213,2515.9,2515.8,1.2770404]
[1749346224878,30.20980909,2515.9,2515.8,1.2770404]
[1749346225073,30.58039808,2515.9,2515.8,1.2770404]
[1749346225301,30.580398,2515.9,2515.8,1.2770404]
[1749346225497,30.20980909,2515.9,2515.8,1.2770404]
[1749346225907,30.43216525,2515.9,2515.8,1.27704041]
[1749346226104,34.03425367,2515.9,2515.8,1.27704041]
[1749346226288,33.6636598,2515.9,2515.8,1.27704041]
[1749346226487,33.88601607,2515.9,2515.8,1.27704041]
[1749346226691,34.25661388,2515.9,2515.8,1.27704041]
[1749346226893,34.25661255,2515.9,2515.8,1.27704041]
[1749346227289,34.03425142,2515.9,2515.8,1.27704041]
[1749346227501,34.4903598,2515.9,2515.8,1.27704042]
[1749346228193,35.0403598,2515.9,2515.8,1.27704042]
[1749346228514,35.41095294,2515.9,2515.8,1.27704043]
[1749346228718,35.63331003,2515.9,2515.8,1.27704043]
[1749346229013,35.41095372,2515.9,2515.8,1.27704043]
[1749346229212,35.0403598,2515.9,2515.8,1.27704043]
[1749346229715,35.26271593,2515.9,2515.8,1.27704043]
[1749346229903,35.41095415,2515.9,2515.8,1.27704043]
[1749346230082,39.0403598,2515.9,2515.8,1.27704043]
[1749346230287,39.0403598,2515.9,2515.8,1.27704044]
[1749346230499,40.2267202,2515.9,2515.8,1.27704044]
[1749346231098,41.15170762,2515.9,2515.8,1.27704045]
[1749346231422,39.743012,2515.9,2515.8,1.27704045]
[1749346231612,39.37244438,2515.9,2515.8,1.27704046]
[1749346231794,39.74301682,2515.9,2515.8,1.27704046]
[1749346232119,39.59476395,2515.9,2515.8,1.27704046]
[1749346232304,39.37244438,2515.9,2515.8,1.27704046]
[1749346232511,39.59476443,2515.9,2515.8,1.27704046]
[1749346232809,39.37244438,2515.9,2515.8,1.27704046]
[1749346233117,39.74251883,2515.9,2515.8,1.27704046]
[1749346233419,40.92765907,2515.9,2515.8,1.27704046]
[1749346233607,39.37244438,2515.9,2515.8,1.27704047]
[1749346233784,39.59448728,2515.9,2515.8,1.27704047]
[1749346234113,40.55756897,2515.9,2515.8,1.27704047]
[1749346234323,39.37244438,2515.9,2515.8,1.27704047]
[1749346234521,40.5574823,2515.9,2515.8,1.27704047]
[1749346234818,40.77955889,2515.9,2515.8,1.27704047]
[1749346235115,40.77958282,2515.9,2515.8,1.27704047]
[1749346235317,40.92765379,2515.9,2515.8,1.27704047]
[1749346235484,40.55779139,2515.9,2515.8,1.27704047]